[Event "35th Roquetas Festival 2024"]
[Site "Roquetas de Mar"]
[Date "2024.01.02"]
[Round "1.12"]
[White "Van Hoolandt, Patrick"]
[Black "Espinosa Aranda, Angel"]
[Result "0-1"]
[ECO "A40"]
[WhiteElo "2028"]
[BlackElo "2431"]
[Annotator "RC"]
[PlyCount "81"]
[EventDate "2024.01.02"]
[EventType "swiss"]
[EventCountry "ESP"]
[SourceTitle "playchess.com"]
[Source "ChessBase"]
[SourceQuality "1"]
[TimeControl "5400+30"]

1. d4 {[%emt 0:00:03]} e6 {[%emt 0:00:39]} 2. c4 {[%emt 0:00:29]} b6 {[%emt 0:00:45]} 3. Nf3 {[%emt 0:00:49]} Bb7 {[%emt 0:00:14]} 4. Nc3 {[%emt 0:00:20]} Bb4 {[%emt 0:01:21]} 5. Bg5 {[%emt 0:00:09]} Nf6 {[%emt 0:00:16]} 6. e3 {[%emt 0:01:36]} h6 {[%emt 0:02:33]} 7. Bh4 {[%emt 0:00:03]} g5 {[%emt 0:00:51]} 8. Bg3 {[%emt 0:00:03]} Ne4 {[%emt 0:00:42]} 9. Qc2 {[%emt 0:00:04]} Bxc3+ {[%emt 0:07:13]} 10. bxc3 {[%emt 0:00:05]} d6 {[%emt 0:00:04]} 11. Bd3 {[%emt 0:00:11]} Nxg3 {[%emt 0:01:07]} 12. hxg3 {[%emt 0:00:27]} Nd7 {[%emt 0:00:31]} 13. Be4 {[%emt 0:08:45]} Bxe4 {[%emt 0:05:19]} 14. Qxe4 {[%emt 0:00:04]} Nf6 {[%emt 0:00:12]} 15. Qc6+ {[%emt 0:07:04]} Ke7 {[%emt 0:01:35]} 16. Ke2 {[%emt 0:03:24]} Qd7 {[%emt 0:05:35]} 17. Qxd7+ {[%emt 0:01:28]} Nxd7 {[%emt 0:03:04]} 18. a4 {[%emt 0:14:23]} a5 {[%emt 0:02:26]} 19. Rab1 {[%emt 0:00:23]} f5 {[%emt 0:02:03]} 20. Nd2 {[%emt 0:06:21]} Kf6 {[%emt 0:02:21]} 21. e4 {[%emt 0:04:17]} Kg6 {[%emt 0:07:58]} 22. Rb5 {[%emt 0:06:36]} Rae8 {[%emt 0:01:35]} 23. Kd3 {[%emt 0:04:22]} Rhf8 {[%emt 0:00:31]} 24. f3 {[%emt 0:03:35]} e5 {[%emt 0:19:26]} 25. exf5+ {[%emt 0:06:13]} Rxf5 {[%emt 0:00:05]} 26. g4 {[%emt 0:04:02]} Rff8 {[%emt 0:00:49]} 27. Ne4 {[%emt 0:01:54]} c6 {[%emt 0:11:23]} 28. Rbb1 {[%emt 0:09:24]} d5 {[%emt 0:00:12]} 29. cxd5 {[%emt 0:01:29]} cxd5 {[%emt 0:00:02]} 30. Ng3 {[%emt 0:03:08]} e4+ {[%emt 0:00:07]} 31. fxe4 {[%emt 0:05:13]} dxe4+ {[%emt 0:00:05]} 32. Nxe4 {[%emt 0:02:28]} Rf4 {[%emt 0:00:04]} 33. Rhe1 {[%emt 0:05:35]} Rxg4 {[%emt 0:00:41]} 34. g3 {[%emt 0:00:33]} Re6 {[%emt 0:01:43]} 35. Re3 {[%emt 0:01:27]} h5 {[%emt 0:00:35]} 36. Rb5 {[%emt 0:00:50]} Nf6 {[%emt 0:04:53]} 37. Nxf6 {[%emt 0:00:36]} Rxf6 {[%emt 0:00:06]} 38. Rbe5 {[%emt 0:00:28]} h4 {[%emt 0:00:16]} 39. gxh4 {[%emt 0:00:14]} gxh4 {[%emt 0:00:05]} 40. Re8 {[%emt 0:01:00]} Kf5 {[%emt 0:03:06]} 41. Rh8 0-1

[Event "35th Roquetas Festival 2024"]
[Site "Roquetas de Mar"]
[Date "2024.01.02"]
[Round "1.13"]
[White "Merario Alarcon, Andres"]
[Black "Koellner, Christof"]
[Result "1-0"]
[ECO "D35"]
[WhiteElo "2429"]
[BlackElo "2023"]
[Annotator "RC"]
[PlyCount "107"]
[EventDate "2024.01.02"]
[EventType "swiss"]
[EventCountry "ESP"]
[SourceTitle "playchess.com"]
[Source "ChessBase"]
[SourceQuality "1"]
[TimeControl "5400+30"]

1. d4 {[%emt 0:00:10]} d5 {[%emt 0:00:41]} 2. c4 {[%emt 0:00:10]} e6 {[%emt 0:00:05]} 3. Nc3 {[%emt 0:00:16]} Nf6 {[%emt 0:00:09]} 4. cxd5 {[%emt 0:00:11]} exd5 {[%emt 0:00:07]} 5. Bg5 {[%emt 0:00:06]} c6 {[%emt 0:00:15]} 6. e3 {[%emt 0:00:08]} Be7 {[%emt 0:00:12]} 7. Bd3 {[%emt 0:00:11]} Nbd7 {[%emt 0:00:16]} 8. h3 {[%emt 0:00:17]} Nf8 {[%emt 0:01:57]} 9. Nf3 {[%emt 0:02:35]} Nh5 {[%emt 0:02:27]} 10. Bxe7 {[%emt 0:00:26]} Qxe7 {[%emt 0:00:03]} 11. Ne5 {[%emt 0:04:18]} g6 {[%emt 0:03:07]} 12. O-O {[%emt 0:00:41]} f6 {[%emt 0:08:06]} 13. Nf3 {[%emt 0:00:23]} f5 {[%emt 0:07:47]} 14. Rb1 {[%emt 0:03:29]} Nf6 {[%emt 0:03:36]} 15. b4 {[%emt 0:00:46]} Ne6 {[%emt 0:01:36]} 16. b5 {[%emt 0:01:32]} c5 {[%emt 0:05:20]} 17. dxc5 {[%emt 0:00:20]} Nxc5 {[%emt 0:00:37]} 18. b6 {[%emt 0:09:50]} Nxd3 {[%emt 0:14:42]} 19. Qxd3 {[%emt 0:00:29]} Be6 {[%emt 0:05:07]} 20. Qb5+ {[%emt 0:03:25]} Kf7 {[%emt 0:03:37]} 21. bxa7 {[%emt 0:03:14]} Rxa7 {[%emt 0:05:23]} 22. Qb6 {[%emt 0:03:56]} Ra6 {[%emt 0:01:33]} 23. Ng5+ {[%emt 0:01:39]} Kg7 {[%emt 0:01:20]} 24. Qxb7 {[%emt 0:02:54]} Qxb7 {[%emt 0:02:04]} 25. Rxb7+ {[%emt 0:00:17]} Kh6 {[%emt 0:01:55]} 26. h4 {[%emt 0:02:15]} Rc8 {[%emt 0:03:26]} 27. Nb5 {[%emt 0:07:36]} Bg8 {[%emt 0:01:32]} 28. a3 {[%emt 0:02:28]} Kh5 {[%emt 0:02:50]} 29. Nf3 {[%emt 0:04:59]} Ne4 {[%emt 0:06:13]} 30. g3 {[%emt 0:02:44]} Rc2 {[%emt 0:04:28]} 31. Nfd4 {[%emt 0:06:36]} Rb2 {[%emt 0:02:42]} 32. Rb8 {[%emt 0:01:26]} Nf6 {[%emt 0:02:25]} 33. Rc1 {[%emt 0:04:26]} Be6 {[%emt 0:04:00]} 34. Nc7 {[%emt 0:06:21]} Rxb8 {[%emt 0:00:42]} 35. Nxa6 {[%emt 0:00:05]} Rb6 {[%emt 0:00:47]} 36. Nc5 {[%emt 0:00:28]} Bc8 {[%emt 0:02:40]} 37. a4 {[%emt 0:00:20]} Ng4 {[%emt 0:01:48]} 38. a5 {[%emt 0:01:14]} Rf6 {[%emt 0:01:00]} 39. Nd3 {[%emt 0:00:30]} Ba6 {[%emt 0:01:21]} 40. Nf4+ {[%emt 0:00:14]} Kh6 {[%emt 0:00:04]} 41. Nxd5 {[%emt 0:00:28]} Rd6 {[%emt 0:00:11]} 42. Nb4 {[%emt 0:01:05]} Ne5 {[%emt 0:00:45]} 43. Rc5 {[%emt 0:00:51]} Nd3 {[%emt 0:00:32]} 44. Rc6 {[%emt 0:02:07]} Rxc6 {[%emt 0:00:40]} 45. Ndxc6 {[%emt 0:00:21]} Nc5 46. Nxa6 {[%emt 0:00:45]} Nxa6 {[%emt 0:00:20]} 47. Kf1 {[%emt 0:00:30]} g5 {[%emt 0:01:00]} 48. hxg5+ {[%emt 0:00:11]} Kxg5 {[%emt 0:00:01]} 49. Ke2 {[%emt 0:00:49]} Kg4 {[%emt 0:01:48]} 50. Nd4 {[%emt 0:02:58]} Nc5 {[%emt 0:01:20]} 51. Kd2 {[%emt 0:02:37]} h5 {[%emt 0:00:12]} 52. Kc3 {[%emt 0:00:31]} Ne4+ 53. Kb4 {[%emt 0:00:19]} Nxf2 {[%emt 0:01:33]} 54. a6 {[%emt 0:00:13]} 1-0

[Event "35th Roquetas Festival 2024"]
[Site "Roquetas de Mar"]
[Date "2024.01.02"]
[Round "1.14"]
[White "Nieto Asencio, Maria del Carmen"]
[Black "Huerga Leache, Mikel"]
[Result "0-1"]
[ECO "A46"]
[WhiteElo "2023"]
[BlackElo "2424"]
[Annotator "RC"]
[PlyCount "94"]
[EventDate "2024.01.02"]
[EventType "swiss"]
[EventCountry "ESP"]
[SourceTitle "playchess.com"]
[Source "ChessBase"]
[SourceQuality "1"]
[TimeControl "5400+30"]

1. d4 {[%emt 0:00:03]} Nf6 {[%emt 0:00:09]} 2. Nf3 {[%emt 0:00:21]} e6 {[%emt 0:01:08]} 3. e3 {[%emt 0:00:21]} c5 {[%emt 0:00:31]} 4. Bd3 {[%emt 0:00:50]} b6 {[%emt 0:00:13]} 5. O-O {[%emt 0:01:02]} Bb7 {[%emt 0:00:06]} 6. b3 {[%emt 0:00:42]} Be7 {[%emt 0:00:23]} 7. Bb2 {[%emt 0:00:19]} O-O {[%emt 0:00:22]} 8. Nbd2 {[%emt 0:01:39]} Nc6 {[%emt 0:01:00]} 9. a3 {[%emt 0:01:06]} Re8 {[%emt 0:02:57]} 10. c4 {[%emt 0:02:26]} cxd4 {[%emt 0:00:10]} 11. exd4 {[%emt 0:00:52]} d5 {[%emt 0:00:08]} 12. Re1 {[%emt 0:03:47]} Rc8 {[%emt 0:05:18]} 13. Rc1 {[%emt 0:02:22]} Bf8 {[%emt 0:03:00]} 14. Ne5 {[%emt 0:09:16]} dxc4 {[%emt 0:01:53]} 15. Nxc6 {[%emt 0:04:36]} Bxc6 {[%emt 0:02:31]} 16. bxc4 {[%emt 0:03:10]} g6 {[%emt 0:01:21]} 17. Nf3 {[%emt 0:08:11]} Bg7 {[%emt 0:02:17]} 18. Ne5 {[%emt 0:01:40]} Ba8 {[%emt 0:01:32]} 19. Be2 {[%emt 0:09:51]} Nd7 {[%emt 0:01:09]} 20. f4 {[%emt 0:03:20]} Bh6 {[%emt 0:04:11]} 21. g3 {[%emt 0:01:31]} Nxe5 {[%emt 0:02:02]} 22. dxe5 {[%emt 0:00:11]} Qc7 {[%emt 0:03:00]} 23. Bf3 {[%emt 0:01:56]} Qc5+ {[%emt 0:06:01]} 24. Kg2 {[%emt 0:01:32]} Red8 {[%emt 0:00:14]} 25. Qe2 {[%emt 0:01:25]} Bxf3+ {[%emt 0:00:08]} 26. Qxf3 {[%emt 0:00:32]} Rd2+ {[%emt 0:00:33]} 27. Re2 {[%emt 0:00:25]} Rcd8 {[%emt 0:00:16]} 28. Rc2 {[%emt 0:03:35]} Rd1 {[%emt 0:01:30]} 29. Qe3 {[%emt 0:02:06]} Qc6+ {[%emt 0:05:14]} 30. Qe4 {[%emt 0:00:19]} Qc7 {[%emt 0:00:50]} 31. Rc1 {[%emt 0:03:33]} R1d3 {[%emt 0:00:20]} 32. Re3 {[%emt 0:09:19]} Rd2+ {[%emt 0:00:23]} 33. Re2 {[%emt 0:00:11]} Bf8 {[%emt 0:00:43]} 34. Rc2 {[%emt 0:01:02]} R2d3 {[%emt 0:00:12]} 35. Re3 {[%emt 0:01:39]} Rd1 {[%emt 0:00:24]} 36. Re1 {[%emt 0:01:15]} R1d7 {[%emt 0:01:00]} 37. Kh3 {[%emt 0:03:45]} Bc5 {[%emt 0:00:31]} 38. a4 {[%emt 0:03:20]} Rd3 {[%emt 0:00:25]} 39. Ree2 {[%emt 0:03:46]} Qd7 {[%emt 0:01:49]} 40. a5 {[%emt 0:04:38]} bxa5 {[%emt 0:00:14]} 41. Rc3 {[%emt 0:01:53]} a4 {[%emt 0:00:21]} 42. Rxd3 {[%emt 0:02:53]} Qxd3 {[%emt 0:01:06]} 43. Qxd3 {[%emt 0:00:07]} Rxd3 {[%emt 0:00:06]} 44. Rc2 {[%emt 0:01:02]} a3 {[%emt 0:00:06]} 45. Bc1 {[%emt 0:00:54]} Kf8 {[%emt 0:02:00]} 46. Kg2 {[%emt 0:01:25]} Ke8 {[%emt 0:00:34]} 47. h3 {[%emt 0:01:37]} Rd1 {[%emt 0:01:02]} 0-1

[Event "35th Roquetas Festival 2024"]
[Site "Roquetas de Mar"]
[Date "2024.01.02"]
[Round "1.17"]
[White "Fiorito, Joaquin"]
[Black "Portero Rubio, Martin"]
[Result "1-0"]
[ECO "E46"]
[WhiteElo "2401"]
[BlackElo "1993"]
[Annotator "RC"]
[PlyCount "100"]
[EventDate "2024.01.02"]
[EventType "swiss"]
[EventCountry "ESP"]
[SourceTitle "playchess.com"]
[Source "ChessBase"]
[SourceQuality "1"]
[TimeControl "5400+30"]

1. d4 {[%emt 0:00:06]} Nf6 {[%emt 0:00:06]} 2. c4 {[%emt 0:00:07]} e6 {[%emt 0:00:03]} 3. Nc3 {[%emt 0:00:39]} Bb4 {[%emt 0:00:06]} 4. e3 {[%emt 0:00:35]} O-O {[%emt 0:00:13]} 5. Bd2 {[%emt 0:00:06]} b6 {[%emt 0:00:38]} 6. Nf3 {[%emt 0:00:08]} Bb7 {[%emt 0:00:35]} 7. Bd3 {[%emt 0:00:05]} c5 {[%emt 0:01:13]} 8. a3 {[%emt 0:01:17]} Bxc3 {[%emt 0:00:28]} 9. Bxc3 {[%emt 0:00:07]} cxd4 {[%emt 0:00:30]} 10. exd4 {[%emt 0:00:08]} d5 {[%emt 0:00:47]} 11. b3 {[%emt 0:00:12]} a5 {[%emt 0:01:14]} 12. O-O {[%emt 0:02:30]} a4 {[%emt 0:01:57]} 13. Bb4 {[%emt 0:01:46]} Re8 {[%emt 0:06:32]} 14. bxa4 {[%emt 0:02:05]} Bc6 {[%emt 0:08:06]} 15. c5 {[%emt 0:03:16]} Bxa4 {[%emt 0:06:46]} 16. Qe2 {[%emt 0:00:16]} Nbd7 {[%emt 0:02:52]} 17. cxb6 {[%emt 0:01:53]} Nxb6 18. Ne5 {[%emt 0:01:18]} Nbd7 {[%emt 0:11:51]} 19. Rfc1 {[%emt 0:03:12]} Rc8 {[%emt 0:04:22]} 20. Qe3 {[%emt 0:06:10]} Qb6 {[%emt 0:03:58]} 21. Bc5 {[%emt 0:00:57]} Nxc5 22. dxc5 {[%emt 0:00:14]} Qa5 {[%emt 0:08:12]} 23. c6 {[%emt 0:02:32]} Red8 {[%emt 0:06:37]} 24. Qd4 {[%emt 0:03:18]} Ne4 {[%emt 0:05:25]} 25. Bxe4 {[%emt 0:17:12]} dxe4 {[%emt 0:00:02]} 26. Qxe4 {[%emt 0:00:06]} Rd5 {[%emt 0:03:31]} 27. Nc4 {[%emt 0:01:26]} Qb5 {[%emt 0:03:55]} 28. Ne3 {[%emt 0:02:11]} Re5 {[%emt 0:02:01]} 29. Qd4 {[%emt 0:00:46]} h6 {[%emt 0:03:20]} 30. c7 {[%emt 0:01:02]} Qa5 {[%emt 0:03:28]} 31. Rab1 {[%emt 0:02:16]} Kh7 {[%emt 0:01:03]} 32. Nc4 {[%emt 0:01:12]} Rd5 {[%emt 0:01:51]} 33. Qe4+ {[%emt 0:00:09]} f5 {[%emt 0:00:39]} 34. Qxe6 {[%emt 0:00:09]} Bd7 {[%emt 0:07:10]} 35. Qxd7 {[%emt 0:00:38]} Rxd7 {[%emt 0:00:37]} 36. Nxa5 {[%emt 0:00:07]} Rdxc7 {[%emt 0:00:04]} 37. Rxc7 {[%emt 0:00:08]} Rxc7 {[%emt 0:00:01]} 38. g3 {[%emt 0:00:12]} Ra7 {[%emt 0:01:19]} 39. Rb5 {[%emt 0:00:06]} Kg6 {[%emt 0:00:20]} 40. Nc4 {[%emt 0:00:08]} Rc7 {[%emt 0:00:15]} 41. Ne5+ {[%emt 0:00:08]} Kf6 {[%emt 0:00:06]} 42. a4 {[%emt 0:00:09]} f4 {[%emt 0:00:55]} 43. Ng4+ {[%emt 0:00:06]} Ke6 {[%emt 0:00:11]} 44. gxf4 {[%emt 0:00:04]} Rc4 {[%emt 0:00:19]} 45. a5 {[%emt 0:00:07]} Rxf4 {[%emt 0:00:12]} 46. Ne3 {[%emt 0:00:04]} Ra4 {[%emt 0:00:19]} 47. Rb6+ {[%emt 0:00:04]} Ke5 {[%emt 0:00:30]} 48. a6 {[%emt 0:00:05]} Kf4 {[%emt 0:00:35]} 49. Rb4+ {[%emt 0:00:05]} Rxb4 {[%emt 0:00:10]} 50. Nd5+ {[%emt 0:00:04]} Ke5 1-0

[Event "35th Roquetas Festival 2024"]
[Site "Roquetas de Mar"]
[Date "2024.01.02"]
[Round "1.18"]
[White "Lopez Nunez, Alonso"]
[Black "Tejedor Fuente, Enrique"]
[Result "0-1"]
[ECO "B20"]
[WhiteElo "1989"]
[BlackElo "2395"]
[Annotator "RC"]
[PlyCount "96"]
[EventDate "2024.01.02"]
[EventType "swiss"]
[EventCountry "ESP"]
[SourceTitle "playchess.com"]
[Source "ChessBase"]
[SourceQuality "1"]
[TimeControl "5400+30"]

1. e4 {[%emt 0:00:03]} c5 {[%emt 0:00:05]} 2. Be2 {[%emt 0:00:16]} Nc6 3. f4 {[%emt 0:00:18]} d6 {[%emt 0:04:07]} 4. Nf3 {[%emt 0:00:35]} Bg4 {[%emt 0:00:26]} 5. O-O {[%emt 0:00:48]} g6 {[%emt 0:01:50]} 6. d3 {[%emt 0:01:48]} Bxf3 {[%emt 0:01:37]} 7. Bxf3 {[%emt 0:00:35]} Bg7 {[%emt 0:00:02]} 8. c3 {[%emt 0:00:12]} Nf6 {[%emt 0:01:26]} 9. Be3 {[%emt 0:04:19]} Nd7 {[%emt 0:03:02]} 10. Na3 {[%emt 0:01:43]} O-O {[%emt 0:02:14]} 11. Nc2 {[%emt 0:01:11]} Rc8 {[%emt 0:03:15]} 12. Be2 {[%emt 0:09:18]} b5 {[%emt 0:08:13]} 13. d4 {[%emt 0:03:23]} Rb8 {[%emt 0:02:32]} 14. Qe1 {[%emt 0:06:17]} Na5 {[%emt 0:06:52]} 15. Rd1 {[%emt 0:01:14]} Nc4 {[%emt 0:05:45]} 16. Bc1 {[%emt 0:01:56]} Qa5 {[%emt 0:02:01]} 17. a3 {[%emt 0:05:43]} Qa4 {[%emt 0:00:45]} 18. Ne3 {[%emt 0:01:28]} cxd4 {[%emt 0:02:25]} 19. cxd4 {[%emt 0:03:11]} Nxe3 {[%emt 0:03:50]} 20. Bxe3 {[%emt 0:00:07]} Nf6 {[%emt 0:04:45]} 21. e5 {[%emt 0:02:25]} Nd5 {[%emt 0:00:45]} 22. Bf3 {[%emt 0:00:11]} Qb3 {[%emt 0:01:15]} 23. Bc1 {[%emt 0:05:34]} e6 {[%emt 0:00:15]} 24. Be4 {[%emt 0:01:03]} b4 {[%emt 0:12:56]} 25. Rf3 {[%emt 0:02:41]} Qa2 {[%emt 0:02:44]} 26. Qh4 {[%emt 0:09:29]} f5 {[%emt 0:01:40]} 27. exf6 {[%emt 0:01:56]} Nxf6 {[%emt 0:01:01]} 28. Bc2 {[%emt 0:00:27]} bxa3 {[%emt 0:02:40]} 29. Rxa3 {[%emt 0:00:28]} Qc4 {[%emt 0:00:31]} 30. Rc3 {[%emt 0:03:27]} Qd5 {[%emt 0:03:33]} 31. Qg5 {[%emt 0:03:17]} Qxg5 {[%emt 0:01:31]} 32. fxg5 {[%emt 0:00:03]} Nd5 {[%emt 0:00:26]} 33. Rc4 {[%emt 0:12:23]} Nb4 {[%emt 0:04:28]} 34. Ba4 {[%emt 0:00:40]} Rf7 {[%emt 0:02:25]} 35. Bd2 {[%emt 0:01:56]} Nd5 {[%emt 0:03:30]} 36. b3 {[%emt 0:03:05]} Nb6 {[%emt 0:00:59]} 37. Rb4 {[%emt 0:01:03]} a5 {[%emt 0:00:16]} 38. Rxb6 {[%emt 0:00:18]} Bxd4+ {[%emt 0:00:16]} 39. Kh1 {[%emt 0:00:37]} Bxb6 {[%emt 0:00:11]} 40. Bc3 {[%emt 0:00:25]} Rbf8 {[%emt 0:00:22]} 41. Bf6 {[%emt 0:00:45]} Bc5 {[%emt 0:00:13]} 42. g3 {[%emt 0:00:48]} h6 {[%emt 0:00:58]} 43. h4 {[%emt 0:00:18]} Rxf6 {[%emt 0:00:15]} 44. gxf6 {[%emt 0:00:07]} Rxf6 {[%emt 0:00:09]} 45. Bb5 {[%emt 0:00:42]} Rf3 {[%emt 0:00:12]} 46. Bc4 {[%emt 0:00:05]} d5 {[%emt 0:00:41]} 47. Rxd5 {[%emt 0:01:03]} exd5 {[%emt 0:00:11]} 48. Bxd5+ {[%emt 0:00:03]} Rf7 {[%emt 0:00:05]} 0-1

[Event "35th Roquetas Festival 2024"]
[Site "Roquetas de Mar"]
[Date "2024.01.02"]
[Round "1.20"]
[White "Collado Alcolado, Angel"]
[Black "Camacho Collados, Jose"]
[Result "0-1"]
[ECO "C47"]
[WhiteElo "1977"]
[BlackElo "2381"]
[Annotator "RC"]
[PlyCount "56"]
[EventDate "2024.01.02"]
[EventType "swiss"]
[EventCountry "ESP"]
[SourceTitle "playchess.com"]
[Source "ChessBase"]
[SourceQuality "1"]
[TimeControl "5400+30"]

1. e4 {[%emt 0:00:03]} e5 {[%emt 0:00:04]} 2. Nf3 {[%emt 0:00:32]} Nc6 {[%emt 0:00:04]} 3. Nc3 {[%emt 0:00:17]} Nf6 {[%emt 0:00:41]} 4. a3 {[%emt 0:00:05]} d5 {[%emt 0:00:26]} 5. Bb5 {[%emt 0:01:14]} Nxe4 {[%emt 0:01:26]} 6. Qe2 {[%emt 0:06:27]} Qd6 {[%emt 0:00:30]} 7. Nxd5 {[%emt 0:00:53]} Qxd5 {[%emt 0:11:07]} 8. Bc4 {[%emt 0:00:16]} Qd6 {[%emt 0:04:11]} 9. Qxe4 {[%emt 0:00:12]} Qg6 {[%emt 0:01:52]} 10. Qxg6 {[%emt 0:01:37]} hxg6 {[%emt 0:01:23]} 11. O-O {[%emt 0:03:10]} f6 {[%emt 0:07:03]} 12. Re1 {[%emt 0:03:30]} Bg4 {[%emt 0:04:09]} 13. Bd5 {[%emt 0:02:17]} O-O-O {[%emt 0:03:46]} 14. Bxc6 {[%emt 0:09:43]} bxc6 {[%emt 0:00:08]} 15. Re3 {[%emt 0:00:10]} Bc5 {[%emt 0:05:00]} 16. Rc3 {[%emt 0:02:10]} Rd5 {[%emt 0:15:23]} 17. h3 {[%emt 0:03:54]} Bxf3 {[%emt 0:03:59]} 18. Rxf3 {[%emt 0:00:04]} e4 {[%emt 0:00:10]} 19. Rg3 {[%emt 0:00:21]} Rf5 {[%emt 0:02:04]} 20. Rxg6 {[%emt 0:00:57]} Rxf2 {[%emt 0:01:56]} 21. b4 {[%emt 0:00:59]} Bb6 {[%emt 0:03:56]} 22. Kh2 {[%emt 0:01:41]} Bd4 {[%emt 0:09:58]} 23. c3 {[%emt 0:02:42]} e3 {[%emt 0:00:45]} 24. dxe3 {[%emt 0:07:08]} Bxc3 25. Kg1 {[%emt 0:02:58]} Rc2 {[%emt 0:02:18]} 26. Rb1 {[%emt 0:00:10]} Rd8 {[%emt 0:00:30]} 27. Rxg7 {[%emt 0:01:33]} Rd1+ {[%emt 0:00:38]} 28. Kh2 {[%emt 0:00:07]} Be5+ {[%emt 0:00:06]} 0-1

[Event "35th Roquetas Festival 2024"]
[Site "Roquetas de Mar"]
[Date "2024.01.02"]
[Round "1.21"]
[White "Bernal Moro, Luis Javier"]
[Black "Buijs Martin, Urtzi"]
[Result "1-0"]
[ECO "A14"]
[WhiteElo "2370"]
[BlackElo "1965"]
[Annotator "RC"]
[PlyCount "59"]
[EventDate "2024.01.02"]
[EventType "swiss"]
[EventCountry "ESP"]
[SourceTitle "playchess.com"]
[Source "ChessBase"]
[SourceQuality "1"]
[TimeControl "5400+30"]

1. c4 {[%emt 0:00:13]} e6 {[%emt 0:01:16]} 2. g3 {[%emt 0:01:02]} d5 {[%emt 0:01:15]} 3. Bg2 {[%emt 0:02:15]} Nf6 {[%emt 0:00:46]} 4. Nf3 {[%emt 0:00:39]} Be7 {[%emt 0:02:16]} 5. O-O {[%emt 0:01:26]} O-O {[%emt 0:00:21]} 6. b3 {[%emt 0:02:42]} c5 {[%emt 0:07:58]} 7. Bb2 {[%emt 0:11:35]} Nc6 {[%emt 0:00:50]} 8. e3 {[%emt 0:03:24]} dxc4 {[%emt 0:24:40]} 9. bxc4 {[%emt 0:00:09]} Qb6 {[%emt 0:02:17]} 10. Qc1 {[%emt 0:28:49]} Nb4 {[%emt 0:16:22]} 11. Ne1 {[%emt 0:01:42]} e5 {[%emt 0:09:45]} 12. a3 {[%emt 0:21:55]} Nc6 {[%emt 0:01:10]} 13. d3 {[%emt 0:01:11]} Rd8 {[%emt 0:11:53]} 14. Nc3 {[%emt 0:05:05]} Qc7 {[%emt 0:03:22]} 15. Nd5 {[%emt 0:02:29]} Nxd5 {[%emt 0:01:05]} 16. cxd5 {[%emt 0:00:04]} Na5 {[%emt 0:00:34]} 17. Qc3 {[%emt 0:00:42]} Bf6 {[%emt 0:01:51]} 18. e4 {[%emt 0:03:52]} b6 {[%emt 0:00:33]} 19. f4 {[%emt 0:01:56]} Re8 {[%emt 0:04:30]} 20. Nf3 {[%emt 0:01:06]} Bg4 {[%emt 0:00:46]} 21. fxe5 {[%emt 0:04:31]} Bxf3 {[%emt 0:00:19]} 22. exf6 {[%emt 0:00:06]} Bxg2 {[%emt 0:00:14]} 23. Kxg2 {[%emt 0:00:04]} Qd6 {[%emt 0:00:55]} 24. fxg7 {[%emt 0:00:20]} c4 {[%emt 0:00:18]} 25. Rf6 {[%emt 0:00:52]} Qc5 {[%emt 0:00:59]} 26. Raf1 {[%emt 0:02:07]} cxd3 {[%emt 0:00:34]} 27. Qxd3 {[%emt 0:00:16]} Nc4 {[%emt 0:00:44]} 28. Bd4 {[%emt 0:00:38]} Qb5 {[%emt 0:05:12]} 29. Rxf7 {[%emt 0:02:30]} Rad8 {[%emt 0:00:30]} 30. Qf3 {[%emt 0:00:27]} 1-0

[Event "35th Roquetas Festival 2024"]
[Site "Roquetas de Mar"]
[Date "2024.01.02"]
[Round "1.22"]
[White "Feal Albala, Alonso"]
[Black "Fiorito, Francisco"]
[Result "0-1"]
[ECO "B34"]
[WhiteElo "1962"]
[BlackElo "2370"]
[Annotator "RC"]
[PlyCount "74"]
[EventDate "2024.01.02"]
[EventType "swiss"]
[EventCountry "ESP"]
[SourceTitle "playchess.com"]
[Source "ChessBase"]
[SourceQuality "1"]
[TimeControl "5400+30"]

1. e4 {[%emt 0:00:07]} c5 {[%emt 0:00:07]} 2. Nf3 {[%emt 0:00:06]} Nc6 {[%emt 0:00:06]} 3. d4 {[%emt 0:00:07]} cxd4 {[%emt 0:00:06]} 4. Nxd4 {[%emt 0:00:09]} g6 {[%emt 0:00:04]} 5. Nc3 {[%emt 0:00:19]} Bg7 {[%emt 0:00:04]} 6. Nb3 {[%emt 0:00:12]} Nf6 {[%emt 0:00:07]} 7. Be2 {[%emt 0:00:47]} O-O {[%emt 0:00:08]} 8. O-O {[%emt 0:00:12]} d6 {[%emt 0:00:02]} 9. Re1 {[%emt 0:00:31]} Be6 {[%emt 0:00:42]} 10. Bf1 {[%emt 0:00:21]} Rc8 {[%emt 0:01:04]} 11. Nd5 {[%emt 0:04:32]} a5 {[%emt 0:05:17]} 12. c3 {[%emt 0:05:37]} a4 {[%emt 0:05:44]} 13. Nd4 {[%emt 0:05:14]} Bxd5 {[%emt 0:02:26]} 14. exd5 {[%emt 0:00:16]} Nxd4 {[%emt 0:00:23]} 15. Qxd4 {[%emt 0:06:22]} Qa5 {[%emt 0:02:25]} 16. Rd1 {[%emt 0:02:35]} Rc5 {[%emt 0:01:15]} 17. Qb4 {[%emt 0:09:38]} Rxd5 {[%emt 0:07:58]} 18. Be3 {[%emt 0:02:29]} Rc8 {[%emt 0:03:23]} 19. Qxb7 {[%emt 0:04:38]} Qc7 {[%emt 0:03:19]} 20. Qb4 {[%emt 0:09:52]} Rb8 {[%emt 0:02:32]} 21. Qxa4 {[%emt 0:01:03]} Rxd1 {[%emt 0:01:11]} 22. Qxd1 {[%emt 0:06:19]} Rxb2 {[%emt 0:00:37]} 23. Qf3 {[%emt 0:02:18]} Qa5 {[%emt 0:06:37]} 24. a4 {[%emt 0:03:24]} h5 {[%emt 0:00:46]} 25. Qc6 {[%emt 0:06:18]} Ng4 {[%emt 0:05:31]} 26. Qe8+ {[%emt 0:06:30]} Bf8 {[%emt 0:00:18]} 27. Bd4 {[%emt 0:05:43]} e5 {[%emt 0:02:30]} 28. Be3 {[%emt 0:00:42]} Nxe3 {[%emt 0:03:51]} 29. fxe3 {[%emt 0:00:14]} Qxc3 {[%emt 0:01:34]} 30. a5 {[%emt 0:00:20]} h4 {[%emt 0:05:47]} 31. h3 {[%emt 0:05:22]} d5 {[%emt 0:03:09]} 32. a6 {[%emt 0:02:55]} Kg7 {[%emt 0:01:18]} 33. a7 {[%emt 0:04:30]} Qxe3+ {[%emt 0:00:51]} 34. Kh1 {[%emt 0:00:07]} Bc5 {[%emt 0:00:17]} 35. Bc4 {[%emt 0:00:44]} Rxg2 {[%emt 0:02:42]} 36. Qxf7+ {[%emt 0:02:42]} Kxf7 {[%emt 0:00:26]} 37. Bxd5+ {[%emt 0:00:41]} Kg7 {[%emt 0:00:08]} 0-1